fUST/lending_fUST_20240725
["ID","MTS","AMOUNT","RATE_DAILY","PERIOD"]
[333077811,1721842145142,-316.19049459,0.0001,2]
[333077812,1721842145165,-400.0,0.0001137,2]
[333077813,1721842187087,154.60575532,0.0001137,2]
[333077814,1721842197882,154.60575532,0.0001137,2]
[333077820,1721842231165,721.22848936,0.0001137,2]
[333077821,1721842231193,420.10147029,0.0001137,2]
[333077830,1721842232731,-4896.91027467,0.000125,2]
[333077832,1721842232742,-1771.89750857,0.000129,2]
[333077833,1721842232752,-3114.60941328,0.000135,2]
[333077834,1721842232762,-8165.00421127,0.00013598,2]
[333077835,1721842232774,-745.05055331,0.00013598,2]
[333077836,1721842232785,-200.0,0.00013598,2]
[333077837,1721842232794,-293.8749366,0.000136,2]
[333077838,1721842232805,-206.6937542,0.000136,2]
[333077839,1721842232815,-260.4420407,0.000136,2]
[333077840,1721842232825,-17875.28185482,0.00013688,2]
[333077961,1721842238553,-1058.862999,0.00013688,2]
[333077970,1721842238632,-9029.11294574,0.00013688,2]
[333078059,1721842240747,-24192.48980191,0.00013688,2]
[333078304,1721842243684,-6887.66572923,0.00013688,2]
[333078313,1721842243762,-1115.27454731,0.00013688,2]
[333078315,1721842243776,-365.44168759,0.00013688,2]
[333078317,1721842243787,-489.14847298,0.00013689,2]
[333078413,1721842246830,-7698.2855583,0.00013689,2]
[333078426,1721842247046,-458.87019237,0.00013689,2]
[333078427,1721842247056,-321.69746731,0.00013698,2]
[333078429,1721842247069,-178.30253269,0.00013698,2]
[333078430,1721842247079,-500.0,0.00013698,2]
[333078431,1721842247089,-379.06717231,0.00013698,2]
[333078433,1721842247101,-120.93282769,0.00013698,2]
[333078435,1721842247112,-500.0,0.00013698,2]
[333078437,1721842247124,-500.0,0.00013698,2]
[333078439,1721842247134,-500.0,0.00013698,2]
[333078440,1721842247144,-500.0,0.00013698,2]
[333078442,1721842247156,-83.36626731,0.00013698,2]
[333078444,1721842247168,-416.63373269,0.00013698,2]
[333078446,1721842247180,-529.85840651,0.00013698,2]
[333078448,1721842247190,-500.0,0.00013698,2]
[333078449,1721842247201,-500.0,0.00013698,2]
[333078451,1721842247213,-500.0,0.00013698,2]
[333078452,1721842247223,-500.0,0.00013698,2]
[333078453,1721842247234,-307.34,0.00013698,2]
[333078454,1721842247244,-500.0,0.00013698,2]
[333078455,1721842247255,-640.99,0.00013698,2]
[333078456,1721842247266,-506.49774557,0.00013698,2]
[333078457,1721842247278,-35.47847049,0.00013698,2]
[333078464,1721843134125,-343.05691545,9.999e-05,2]
[333078465,1721843229000,-199.42619197,9.999e-05,2]
[333078466,1721843229022,-392.40605053,9.999e-05,2]
[333078467,1721843229044,-185.4750448,9.999e-05,2]
[333078468,1721843229064,-166.71873887,9.999e-05,2]
[333078469,1721843229085,-154.60575532,9.999e-05,2]
[333078470,1721843229105,-170.96423346,9.999e-05,2]
[333078471,1721843229126,-200.0,0.0001,2]
[333078472,1721843229146,-400.0,0.0001137,2]
[333078473,1721843229168,-162.933606,0.00012525,2]
[333078474,1721843229191,-162.933606,0.00012569,2]
[333078475,1721843229213,-162.933606,0.00012612,2]
[333078476,1721843229236,-162.933606,0.00012656,2]
[333078477,1721843229259,-162.933606,0.00012699,2]
[333078478,1721843229282,-162.933606,0.00012743,2]
[333078479,1721843229303,-300.0,0.00012785,2]
[333078480,1721843229326,-125.9353606,0.00012786,2]
[333078481,1721843230105,-36.9982454,0.00012786,2]
[333078482,1721843230132,-162.933606,0.0001283,2]
[333078483,1721843230155,-162.933606,0.00012873,2]
[333078484,1721843230177,-162.933606,0.00012917,2]
[333078485,1721843230202,-174.168862,0.00012936,2]
[333078486,1721843230224,-151.900488,0.00012936,2]
[333078487,1721843230247,-180.85453,0.00012936,2]
[333078488,1721843230271,-150.30539,0.00012936,2]
[333078489,1721843230293,-162.933606,0.0001296,2]
[333078490,1721843230314,-160.04,0.00013,2]
[333078491,1721843230335,-1000.0,0.00013,6]
[333078492,1721843230358,-153.0,0.00013,2]
[333078493,1721843230380,-206.6937542,0.00013,2]
[333078494,1721843230402,-293.9329269,0.00013,2]
[333078495,1721843230429,-162.933606,0.00013004,2]
[333078496,1721843230452,-162.933606,0.00013047,2]
[333078497,1721843230473,-306.0,0.00013078,2]
[333078498,1721843230497,-162.933606,0.00013091,2]
[333078499,1721843230522,-162.933606,0.00013134,2]
[333078500,1721843230546,-600.0,0.00013147,2]
[333078501,1721843230569,-162.933606,0.00013178,2]
[333078502,1721843230594,-306.0,0.00013178,2]
[333078503,1721843230616,-153.0,0.00013178,2]
[333078504,1721843230638,-206.6937542,0.00013178,2]
[333078505,1721843230660,-359.0420411,0.00013178,2]
[333078506,1721843230682,-273.5023368,0.00013352,2]
[333078507,1721843230703,-200.0,0.00013425,2]
[333078508,1721843230725,-150.30539,0.00013583,2]
[333078509,1721843230747,-2000.0,0.00013598,2]
[333078510,1721843230769,-200.0,0.00013598,2]
[333078511,1721843230795,-150.112233,0.000136,2]
[333078512,1721843230816,-334.90305282,0.00013647,2]
[333078513,1721843230838,-865.11037325,0.00013681,2]
[333078514,1721843248136,-208.67532129,0.00013078,2]
[333078515,1721843249176,-85.25760561,0.00013078,2]
[333078516,1721843249198,-153.0,0.00013078,2]
[333078517,1721843249219,-206.6937542,0.00013078,2]
[333078518,1721843249240,-2537.19424588,0.00013681,2]
[333078530,1721843348149,-432.77100484,9.9e-05,2]
[333078531,1721843348305,200.0,9.9e-05,2]
[333078532,1721843348360,400.0,0.0001127,2]
[333078535,1721843407678,154.59033561,0.0001127,2]
[333078537,1721843420022,200.0,0.0001,2]
[333078538,1721843420082,273.02689097,0.0001137,2]
[333078539,1721843422211,1125.64014788,0.0001127,2]
[333078540,1721843422232,275.46617166,0.0001127,2]
[333078583,1721843432247,-724.06,0.0001366,2]
[333078584,1721843432256,-242.0344,0.00013684,2]
[333078585,1721843432266,-1869.60912642,0.00013688,2]
[333078649,1721843437630,154.59033561,0.0001127,2]
[333078653,1721843437861,-323.81791502,0.00013688,2]
[333078654,1721843437875,-324.08279063,0.00013688,2]
[333078655,1721843437888,-11183.55362453,0.00013688,2]
[333078681,1721843442762,-5618.23755197,0.00013688,2]
[333078703,1721844355204,-154.71377951,9.999e-05,2]
[333078704,1721844355227,-200.0,0.0001,2]
[333078705,1721844355249,-182.12641285,0.0001137,2]
[333078706,1721844425115,-200.0,0.0001,2]
[333078707,1721844425136,-400.0,0.0001137,2]
[333078708,1721844425161,-166.7770855,0.00012597,2]
[333078709,1721844425184,-1000.0,0.00013,8]
[333078710,1721844425207,-632.39106121,0.00013028,2]
[333078711,1721844425228,-202.82732289,0.00013147,2]
[333078712,1721844425249,-334.90305283,0.00013173,2]
[333078713,1721844425271,-312.3204449,0.000132,2]
[333078714,1721844425292,-306.9468442,0.000132,2]
[333078715,1721844425315,-401.75394077,0.00013375,2]
[333078716,1721844425337,-293.9329269,0.000134,2]
[333078717,1721844425358,-220.71297224,0.000134,2]
[333078718,1721844427109,-85.28702776,0.000134,2]
[333078719,1721844427130,-153.0,0.000134,2]
[333078720,1721844427156,-206.6937542,0.000134,2]
[333078721,1721844427178,-68.62641898,0.00013425,2]
[333078722,1721844427208,-131.37358102,0.00013425,2]
[333078723,1721844427231,-300.0,0.00013499,2]
[333078724,1721844427253,-153.0,0.000135,2]
[333078725,1721844427274,-587.8658538,0.000135,2]
[333078726,1721844427295,-206.0347742,0.000135,2]
[333078727,1721844427316,-90.95579098,0.000135,2]
[333078728,1721844428166,-62.04420902,0.000135,2]
[333078729,1721844428188,-199.2491992,0.000135,2]
[333078730,1721844428209,-413.3875084,0.000135,2]
[333078731,1721844428232,-306.0,0.000135,2]
[333078732,1721844428252,-263.69626748,0.00013598,2]
[333078733,1721844449108,-260.84241212,0.0001137,2]
[333078734,1721844449132,-7130.36156291,0.0001137,2]
[333078735,1721844449155,-383.0000004,0.0001137,2]
[333078736,1721844449177,-202.66697537,0.0001137,2]
[333078737,1721844449200,-1184.72255036,0.00013598,2]
[333078738,1721844449224,-306.0,0.000136,2]
[333078739,1721844449247,-620.61955306,0.0001368,2]
[333078740,1721844449272,-1.51343763,0.00013688,2]
[333078746,1721844546113,-200.0,0.0001,2]
[333078747,1721844546134,-400.0,0.0001137,2]
[333078785,1721844632380,-3490.72511553,0.00013688,2]
[333078819,1721844637975,-3418.43363275,0.00013688,2]
[333078882,1721844640194,-40399.23972779,0.00013688,2]
[333078883,1721844640206,-5017.61532663,0.00013688,2]
[333078905,1721844643108,-12822.95555128,0.00013688,2]
[333078906,1721844643143,-1157.0,0.00013688,2]
[333078920,1721844646248,-30488.96299732,0.00013688,2]
[333078921,1721844646277,-118843.4355677,0.00013688,2]
[333078922,1721844646287,-500.0,0.00013698,2]
[333078923,1721844646298,-500.0,0.00013698,2]
[333078924,1721844646310,-500.0,0.00013698,2]
[333078925,1721844646323,-500.0,0.00013698,2]
[333078926,1721844646335,-307.34,0.00013698,2]
[333078927,1721844646347,-151.0,0.00013698,2]
[333078928,1721844646361,-298.47145598,0.00013698,2]
[333078929,1721844646374,-5842.69,0.00013698,2]
[333078930,1721844646386,-5842.69,0.00013698,2]
[333078931,1721844646399,-5842.69,0.00013698,2]
[333078932,1721844646411,-5842.69,0.00013698,2]
[333078933,1721844646422,-5842.69,0.00013698,2]
[333078934,1721844646433,-5842.69,0.00013698,2]
[333078935,1721844646450,-5842.69,0.00013698,2]
[333078936,1721844646464,-5842.69,0.00013698,2]
[333078937,1721844646476,-5842.69,0.00013698,2]
[333078938,1721844646487,-5842.69,0.00013698,2]
[333078939,1721844646498,-5842.69,0.00013698,2]
[333078940,1721844646510,-5842.69,0.00013698,2]
[333078941,1721844646522,-5842.69,0.00013698,2]
[333078942,1721844646533,-5842.69,0.00013698,2]
[333078943,1721844646546,-5842.69,0.00013698,2]
[333078944,1721844646558,-5842.69,0.00013698,2]
[333078945,1721844646569,-5842.69,0.00013698,2]
[333078946,1721844646580,-5842.69,0.00013698,2]
[333078947,1721844646590,-5842.69,0.00013698,2]
[333078948,1721844646601,-5842.69,0.00013698,2]
[333078949,1721844646611,-5842.69,0.00013698,2]
[333078950,1721844646621,-5842.69,0.00013698,2]
[333078951,1721844646632,-5842.69,0.00013698,2]
[333078952,1721844646642,-5842.75882905,0.00013698,2]
[333078953,1721844646652,-1294.30263431,0.00013698,2]
[333078954,1721844646663,-500.0,0.00013698,2]
[333078955,1721844646673,-502.3462927,0.00013698,2]
[333078956,1721844646683,-500.0,0.00013698,2]
[333078957,1721844646696,-521.93,0.00013698,2]
[333078958,1721844646707,-500.0,0.00013698,2]
[333078959,1721844646718,-500.0,0.00013698,2]
[333078960,1721844646728,-500.60326137,0.00013698,2]
[333078961,1721844646738,-500.0,0.00013698,2]
[333078962,1721844646748,-514.80953133,0.00013698,2]
[333078963,1721844646758,-500.0,0.00013698,2]
[333078964,1721844646768,-500.0,0.00013698,2]
[333078965,1721844646778,-500.0,0.00013698,2]
[333078966,1721844646788,-500.0,0.00013698,2]
[333078967,1721844646799,-500.0,0.00013698,2]
[333078968,1721844646809,-500.0,0.00013698,2]
[333078969,1721844646820,-500.0,0.00013698,2]
[333078970,1721844646831,-307.34,0.00013698,2]
[333078971,1721844646843,-500.0,0.00013698,2]
[333078972,1721844646855,-500.0,0.00013698,2]
[333078973,1721844646867,-504.92532505,0.00013698,2]
[333078974,1721844646877,-500.0,0.00013698,2]
[333078975,1721844646888,-500.0,0.00013698,2]
[333078976,1721844646899,-500.0,0.00013698,2]
[333078977,1721844646910,-500.0,0.00013698,2]
[333078978,1721844646921,-500.0,0.00013698,2]
[333078979,1721844646931,-500.0,0.00013698,2]
[333078980,1721844646942,-512.54286972,0.00013698,2]
[333078981,1721844646952,-620.43759471,0.00013698,2]
[333078982,1721844646964,-500.0,0.00013698,2]
[333078983,1721844646976,-500.0,0.00013698,2]
[333078984,1721844646986,-500.0,0.00013698,2]
[333078985,1721844646996,-500.0,0.00013698,2]
[333078986,1721844647008,-500.0,0.00013698,2]
[333078987,1721844647019,-500.0,0.00013698,2]
[333078988,1721844647032,-277.06716605,0.00013698,2]
[333078989,1721844647043,-500.0,0.00013698,2]
[333078990,1721844647055,-500.0,0.00013698,2]
[333078991,1721844647065,-500.0,0.00013698,2]
[333078992,1721844647076,-500.0,0.00013698,2]
[333078993,1721844647086,-515.94815094,0.00013698,2]
[333078994,1721844647096,-500.0,0.00013698,2]
[333078995,1721844647106,-500.0,0.00013698,2]
[333078996,1721844647116,-500.0,0.00013698,2]
[333078997,1721844647127,-500.0,0.00013698,2]
[333078998,1721844647138,-500.0,0.00013698,2]
[333078999,1721844647148,-508.15,0.00013698,2]
[333079000,1721844647159,-500.0,0.00013698,2]
[333079001,1721844647169,-500.0,0.00013698,2]
[333079002,1721844647180,-500.0,0.00013698,2]
[333079003,1721844647192,-1450.53,0.00013698,2]
[333079004,1721844647202,-500.0,0.00013698,2]
[333079005,1721844647214,-500.0,0.00013698,2]
[333079006,1721844647225,-151.0,0.00013698,2]
[333079007,1721844647237,-151.0,0.00013698,2]
[333079008,1721844647247,-280.43116125,0.00013698,2]
[333079009,1721844647258,-509.02708528,0.00013698,2]
[333079010,1721844647269,-500.0,0.00013698,2]
[333079011,1721844647280,-503.92551539,0.00013698,2]
[333079012,1721844647291,-500.0,0.00013698,2]
[333079013,1721844647302,-500.0,0.00013698,2]
[333079014,1721844647312,-500.0,0.00013698,2]
[333079015,1721844647330,-500.0,0.00013698,2]
[333079016,1721844647349,-500.0,0.00013698,2]
[333079017,1721844647362,-500.0,0.00013698,2]
[333079018,1721844647376,-500.0,0.00013698,2]
[333079019,1721844647389,-508.8658198,0.00013698,2]
[333079020,1721844647403,-500.0,0.00013698,2]
[333079021,1721844647416,-3287.3,0.00013698,2]
[333079022,1721844647428,-510.91045092,0.00013698,2]
[333079023,1721844647442,-596.34,0.00013698,2]
[333079024,1721844647454,-500.0,0.00013698,2]
[333079025,1721844647466,-504.22601508,0.00013698,2]
[333079026,1721844647478,-500.0,0.00013698,2]
[333079027,1721844647490,-500.0,0.00013698,2]
[333079028,1721844647501,-500.0,0.00013698,2]
[333079029,1721844647512,-500.0,0.00013698,2]
[333079030,1721844647525,-500.0,0.00013698,2]
[333079031,1721844647536,-500.0,0.00013698,2]
[333079032,1721844647547,-525.59,0.00013698,2]
[333079033,1721844647561,-520.38023902,0.00013698,2]
[333079034,1721844647572,-1198.84,0.00013698,2]
[333079035,1721844647584,-500.0,0.00013698,2]
[333079036,1721844647596,-500.0,0.00013698,2]
[333079037,1721844647607,-687.92,0.00013698,2]
[333079038,1721844647619,-500.0,0.00013698,2]
[333079039,1721844647632,-500.0,0.00013698,2]
[333079040,1721844647645,-500.0,0.00013698,2]
[333079041,1721844647657,-500.0,0.00013698,2]
[333079042,1721844647670,-500.0,0.00013698,2]
[333079043,1721844647682,-500.0,0.00013698,2]
[333079044,1721844647694,-500.0,0.00013698,2]
[333079045,1721844647705,-500.0,0.00013698,2]
[333079046,1721844647718,-399.84210935,0.00013698,2]
[333079047,1721844647731,-502.34821181,0.00013698,2]
[333079048,1721844647742,-500.0,0.00013698,2]
[333079049,1721844647754,-557.13,0.00013698,2]
[333079050,1721844647767,-500.0,0.00013698,2]
[333079051,1721844647779,-500.0,0.00013698,2]
[333079052,1721844647790,-500.0,0.00013698,2]
[333079053,1721844647804,-500.0,0.00013698,2]
[333079054,1721844647816,-500.0,0.00013698,2]
[333079055,1721844647828,-500.0,0.00013698,2]
[333079056,1721844647842,-500.0,0.00013698,2]
[333079057,1721844647857,-500.0,0.00013698,2]
[333079058,1721844647868,-500.0,0.00013698,2]
[333079059,1721844647879,-500.0,0.00013698,2]
[333079060,1721844647890,-500.0,0.00013698,2]
[333079061,1721844647900,-370.27688222,0.00013698,2]
[333079062,1721844647910,-1797.8,0.00013698,2]
[333079063,1721844647921,-500.0,0.00013698,2]
[333079064,1721844647931,-500.0,0.00013698,2]
[333079065,1721844647940,-500.0,0.00013698,2]
[333079066,1721844647950,-500.0,0.00013698,2]
[333079067,1721844647960,-1260.3,0.00013698,2]
[333079068,1721844647970,-500.0,0.00013698,2]
[333079069,1721844647979,-500.0,0.00013698,2]
[333079070,1721844647989,-1171.23,0.00013698,2]
[333079071,1721844647999,-505.12,0.00013698,2]
[333079072,1721844648008,-500.0,0.00013698,2]
[333079073,1721844648019,-500.0,0.00013698,2]
[333079074,1721844648030,-735.57,0.00013698,2]
[333079075,1721844648041,-1469.26,0.00013698,2]
[333079076,1721844648053,-500.0,0.00013698,2]
[333079077,1721844648064,-500.0,0.00013698,2]
[333079078,1721844648075,-767.71,0.00013698,2]
[333079079,1721844648085,-504.37885215,0.00013698,2]
[333079080,1721844648398,-503.81854357,0.00013698,2]
[333079081,1721844648416,-500.0,0.00013698,2]
[333079082,1721844648427,-1973.33,0.00013698,2]
[333079083,1721844648436,-500.0,0.00013698,2]
[333079084,1721844648448,-501.83143831,0.00013698,2]
[333079085,1721844648459,-500.0,0.00013698,2]
[333079086,1721844648468,-500.0,0.00013698,2]
[333079087,1721844648478,-1782.02,0.00013698,2]
[333079088,1721844648488,-500.0,0.00013698,2]
[333079089,1721844648498,-500.0,0.00013698,2]
[333079090,1721844648507,-500.0,0.00013698,2]
[333079091,1721844648517,-680.7,0.00013698,2]
[333079092,1721844648527,-640.43780664,0.00013698,2]
[333079093,1721844648537,-1986.55,0.00013698,2]
[333079094,1721844648547,-500.0,0.00013698,2]
[333079095,1721844648558,-502.68,0.00013698,2]
[333079096,1721844648569,-500.0,0.00013698,2]
[333079097,1721844648579,-1209.66,0.00013698,2]
[333079098,1721844648588,-500.0,0.00013698,2]
[333079099,1721844648597,-279.67259686,0.00013698,2]
[333079100,1721844648607,-247.91112171,0.00013698,2]
[333079101,1721844648617,-500.0,0.00013698,2]
[333079102,1721844648627,-502.50851254,0.00013698,2]
[333079103,1721844648638,-500.0,0.00013698,2]
[333079104,1721844648649,-500.0,0.00013698,2]
[333079105,1721844648661,-500.0,0.00013698,2]
[333079106,1721844648670,-151.0,0.00013698,2]
[333079107,1721844648681,-151.0,0.00013698,2]
[333079108,1721844648691,-151.0,0.00013698,2]
[333079109,1721844648701,-500.0,0.00013698,2]
[333079110,1721844648712,-151.0,0.00013698,2]
[333079111,1721844648722,-196.583047,0.00013698,2]
[333079112,1721844648733,-500.0,0.00013698,2]
[333079113,1721844648743,-699.15,0.00013698,2]
[333079114,1721844648753,-1655.48,0.00013698,2]
[333079115,1721844648764,-353.0947023,0.00013698,2]
[333079116,1721844648774,-500.0,0.00013698,2]
[333079117,1721844648784,-775.75,0.00013698,2]
[333079118,1721844648793,-500.0,0.00013698,2]
[333079119,1721844648803,-500.0,0.00013698,2]
[333079120,1721844648813,-500.0,0.00013698,2]
[333079121,1721844648822,-500.0,0.00013698,2]
[333079122,1721844648832,-500.0,0.00013698,2]
[333079123,1721844648845,-513.61392818,0.00013698,2]
[333079124,1721844648857,-500.0,0.00013698,2]
[333079125,1721844648869,-500.0,0.00013698,2]
[333079126,1721844648879,-1728.26,0.00013698,2]
[333079127,1721844648890,-446.23956577,0.00013698,2]
[333079128,1721844648899,-500.0,0.00013698,2]
[333079129,1721844648910,-555.45,0.00013698,2]
[333079130,1721844648921,-500.0,0.00013698,2]
[333079131,1721844648931,-500.0,0.00013698,2]
[333079132,1721844648941,-1284.75,0.00013698,2]
[333079133,1721844648951,-821.13,0.00013698,2]
[333079134,1721844648962,-715.0,0.00013698,2]
[333079135,1721844648972,-577.86,0.00013698,2]
[333079136,1721844648983,-500.0,0.00013698,2]
[333079137,1721844648993,-500.0,0.00013698,2]
[333079138,1721844649004,-1511.12,0.00013698,2]
[333079139,1721844649016,-576.98,0.00013698,2]
[333079140,1721844649027,-267.60016793,0.00013698,2]
[333079141,1721844649038,-500.0,0.00013698,2]
[333079142,1721844649048,-500.0,0.00013698,2]
[333079143,1721844649058,-500.0,0.00013698,2]
[333079144,1721844649068,-500.0,0.00013698,2]
[333079145,1721844649080,-1277.96,0.00013698,2]
[333079146,1721844649091,-1850.57,0.00013698,2]
[333079147,1721844649102,-710.79,0.00013698,2]
[333079148,1721844649112,-500.0,0.00013698,2]
[333079149,1721844649123,-398.45510743,0.00013698,2]
[333079150,1721844649133,-521.5042719,0.00013698,2]
[333079151,1721844649143,-2186.73,0.00013698,2]
[333079152,1721844649153,-515.13,0.00013698,2]
[333079153,1721844649163,-500.0,0.00013698,2]
[333079154,1721844649176,-500.0,0.00013698,2]
[333079155,1721844649185,-505.38,0.00013698,2]
[333079156,1721844649195,-2364.26,0.00013698,2]
[333079157,1721844649205,-507.52051607,0.00013698,2]
[333079158,1721844649215,-500.0,0.00013698,2]
[333079159,1721844649225,-517.40040572,0.00013698,2]
[333079160,1721844649235,-519.2974088,0.00013698,2]
[333079161,1721844649246,-672.07,0.00013698,2]
[333079162,1721844649256,-500.0,0.00013698,2]
[333079163,1721844649267,-500.0,0.00013698,2]
[333079164,1721844649277,-500.0,0.00013698,2]
[333079165,1721844649289,-500.0,0.00013698,2]
[333079166,1721844649299,-500.0,0.00013698,2]
[333079167,1721844649309,-1281.77,0.00013698,2]
[333079168,1721844649320,-500.0,0.00013698,2]
[333079169,1721844649329,-384.92364276,0.00013698,2]
[333079170,1721844649339,-509.47617074,0.00013698,2]
[333079171,1721844649351,-1160.38,0.00013698,2]
[333079172,1721844649362,-500.0,0.00013698,2]
[333079173,1721844649372,-500.0,0.00013698,2]
[333079174,1721844649389,-500.0,0.00013698,2]
[333079175,1721844649406,-500.0,0.00013698,2]
[333079176,1721844649417,-1054.88,0.00013698,2]
[333079177,1721844649428,-500.0,0.00013698,2]
[333079178,1721844649440,-500.0,0.00013698,2]
[333079179,1721844649451,-500.0,0.00013698,2]
[333079180,1721844649462,-617.25014449,0.00013698,2]
[333079181,1721844649473,-500.0,0.00013698,2]
[333079182,1721844649483,-500.0,0.00013698,2]
[333079183,1721844649494,-620.6,0.00013698,2]
[333079184,1721844649505,-500.0,0.00013698,2]
[333079185,1721844649515,-618.12076343,0.00013698,2]
[333079186,1721844649526,-500.0,0.00013698,2]
[333079187,1721844649537,-500.0,0.00013698,2]
[333079188,1721844649549,-501.16438225,0.00013698,2]
[333079189,1721844649561,-902.16,0.00013698,2]
[333079190,1721844649572,-500.0,0.00013698,2]
[333079191,1721844649583,-781.64,0.00013698,2]
[333079192,1721844649594,-151.0,0.00013698,2]
[333079193,1721844649604,-151.0,0.00013698,2]
[333079194,1721844649616,-151.0,0.00013698,2]
[333079195,1721844649627,-500.0,0.00013698,2]
[333079196,1721844649638,-151.0,0.00013698,2]
[333079197,1721844649650,-151.0,0.00013698,2]
[333079198,1721844649661,-199.374962,0.00013698,2]
[333079199,1721844649672,-594.35,0.00013698,2]
[333079200,1721844649683,-875.21,0.00013698,2]
[333079201,1721844649694,-4112.02,0.00013698,2]
[333079202,1721844649705,-500.0,0.00013698,2]
[333079203,1721844649717,-500.0,0.00013698,2]
[333079204,1721844649731,-500.0,0.00013698,2]
[333079205,1721844649741,-543.81,0.00013698,2]
[333079206,1721844649751,-500.0,0.00013698,2]
[333079207,1721844649761,-500.0,0.00013698,2]
[333079208,1721844649772,-500.0,0.00013698,2]
[333079209,1721844649782,-500.0,0.00013698,2]
[333079210,1721844649792,-2168.9586294,0.00013698,2]
[333079211,1721844649802,-2894.57,0.00013698,2]
[333079212,1721844649813,-500.0,0.00013698,2]
[333079213,1721844649825,-500.0,0.00013698,2]
[333079214,1721844649837,-500.0,0.00013698,2]
[333079215,1721844649852,-559.95533794,0.00013698,2]
[333079216,1721844649862,-500.0,0.00013698,2]
[333079217,1721844649873,-548.27,0.00013698,2]
[333079218,1721844649883,-500.0,0.00013698,2]
[333079219,1721844649895,-500.0,0.00013698,2]
[333079220,1721844649905,-4452.68,0.00013698,2]
[333079221,1721844649915,-844.27,0.00013698,2]
[333079222,1721844649925,-500.0,0.00013698,2]
[333079223,1721844649935,-4424.2,0.00013698,2]
[333079224,1721844649946,-500.0,0.00013698,2]
[333079225,1721844649957,-2077.04,0.00013698,2]
[333079226,1721844649967,-500.0,0.00013698,2]
[333079227,1721844649978,-1979.46,0.00013698,2]
[333079228,1721844649988,-500.0,0.00013698,2]
[333079229,1721844649998,-503.05899241,0.00013698,2]
[333079230,1721844650011,-501.24747373,0.00013698,2]
[333079231,1721844650023,-500.0,0.00013698,2]
[333079232,1721844650035,-500.0,0.00013698,2]
[333079233,1721844650046,-759.08,0.00013698,2]
[333079234,1721844650056,-612.44,0.00013698,2]
[333079235,1721844650067,-500.0,0.00013698,2]
[333079236,1721844650076,-798.94,0.00013698,2]
[333079237,1721844650087,-1739.58,0.00013698,2]
[333079238,1721844650097,-2024.5,0.00013698,2]
[333079239,1721844650108,-702.05,0.00013698,2]
[333079240,1721844650118,-716.07,0.00013698,2]
[333079241,1721844650128,-500.0,0.00013698,2]
[333079242,1721844650138,-4735.55,0.00013698,2]
[333079243,1721844650148,-500.0,0.00013698,2]
[333079244,1721844650158,-500.0,0.00013698,2]
[333079245,1721844650168,-500.0,0.00013698,2]
[333079246,1721844650178,-500.0,0.00013698,2]
[333079247,1721844650188,-1302.63,0.00013698,2]
[333079248,1721844650199,-3268.81,0.00013698,2]
[333079249,1721844650208,-511.54112398,0.00013698,2]
[333079250,1721844650218,-13978.52,0.00013698,2]
[333079251,1721844650227,-500.0,0.00013698,2]
[333079252,1721844650237,-500.0,0.00013698,2]
[333079253,1721844650247,-1719.8,0.00013698,2]
[333079254,1721844650258,-507.21680693,0.00013698,2]
[333079255,1721844650270,-500.0,0.00013698,2]
[333079256,1721844650282,-500.0,0.00013698,2]